fUSD/lending_fUSD_20240508
["ID","MTS","AMOUNT","RATE_DAILY","PERIOD"]
[326613377,1715145039652,-331.88,0.0001299,2]
[326613378,1715145039662,-331.88,0.0001299,2]
[326613379,1715145039671,-331.88,0.0001299,2]
[326613380,1715145039681,-331.88,0.0001299,2]
[326613381,1715145039690,-331.88,0.0001299,2]
[326613382,1715145039700,-331.88,0.0001299,2]
[326613383,1715145039710,-2225.42704476,0.00012997,2]
[326613384,1715145039719,-249.32809512,0.00012997,2]
[326613385,1715145039729,-717.6373306,0.00012997,2]
[326613386,1715145039739,-239.74639788,0.00012997,2]
[326613387,1715145039749,-897.90628194,0.00012997,2]
[326613388,1715145039759,-161.74102731,0.00012997,2]
[326613389,1715145039768,-715.41265788,0.00012997,2]
[326613390,1715145039778,-3665.47724467,0.00012998,2]
[326613391,1715145039789,-1000.0,0.00012999,2]
[326613392,1715145039799,-646.37830369,0.00012999,2]
[326613393,1715145039808,-25896.63429599,0.00012999,2]
[326613394,1715145039818,-451.01746561,0.00012999,2]
[326613395,1715145039828,-761330.32942896,0.00013,2]
[326613396,1715145039840,-611.64505772,0.00013,2]
[326613397,1715145040965,-2837.32402686,0.00013,2]
[326613401,1715145040977,-1256.78856,0.00013,2]
[326613409,1715145043987,-298.72,0.00013,2]
[326613411,1715145043999,-1620.87313189,0.00013,2]
[326613412,1715145044010,-1912.01650934,0.00013,2]
[326613413,1715145047652,-528.14391796,0.000129,2]
[326613415,1715145047662,-309.45098372,0.000129,2]
[326613417,1715145047672,-919.46107743,0.00012999,2]
[326613419,1715145047846,-993.06454,0.00012999,2]
[326613420,1715145047859,-7402.54311618,0.00012999,2]
[326613421,1715145047868,-15090.90858383,0.00013,2]
[326613428,1715146232519,-469.82778,0.00011784,2]
[326613432,1715146232531,-65.18206553,0.00011784,2]
[326613435,1715146232540,-165.39781373,0.00011785,2]
[326613437,1715146232550,-139.37960336,0.0001179,2]
[326613440,1715146232562,-467.5,0.0001179,2]
[326613442,1715146232573,-450.0,0.0001179,2]
[326613444,1715146232585,-600.0,0.0001179,2]
[326613446,1715146232596,-1000.0,0.0001179,2]
[326613452,1715146238935,-450.89332225,0.0001179,2]
[326613458,1715146238948,-1157.98995818,0.0001179,2]
[326613462,1715146238960,-579.61711621,0.0001179,2]
[326613466,1715146238970,-250.0,0.000118,2]
[326613470,1715146238979,-170.89881379,0.00011804,2]
[326613472,1715146238990,-15.11118621,0.00011804,2]
[326613474,1715146239000,-150.0,0.00011829,2]
[326613476,1715146239009,-18460.71,0.0001183,2]
[326613477,1715146239019,-318.25,0.00011863,2]
[326613478,1715146239028,-158.91,0.00011943,2]
[326613479,1715146239038,-215.13,0.0001227,2]
[326613480,1715146239048,-499.99,0.0001227,2]
[326613481,1715146239059,-600.0,0.000126,4]
[326613482,1715146239069,-460.8712,0.00012699,2]
[326613483,1715146239078,-700.0,0.00012699,2]
[326613484,1715146239088,-210.6815,0.00012699,2]
[326613485,1715146239098,-1300.0,0.000127,4]
[326613486,1715146239108,-332.30697192,0.000127,2]
[326613487,1715146239118,-254.6999587,0.000127,2]
[326613488,1715146239128,-3500.94133622,0.00012783,2]
[326613489,1715146239138,-363.61,0.00012789,2]
[326613490,1715146239148,-363.61,0.00012789,2]
[326613491,1715146239158,-363.61,0.0001279,2]
[326613492,1715146239167,-161.1585033,0.0001279,2]
[326613493,1715146239177,-688.42598919,0.00012796,2]
[326613494,1715146239187,-1561.86172371,0.00012796,2]
[326613495,1715146239197,-447.97803408,0.00012797,2]
[326613496,1715146239206,-243.04831926,0.00012798,2]
[326613497,1715146239218,-288.12424113,0.00012798,2]
[326613498,1715146239230,-468.82743961,0.00012798,2]
[326613499,1715146239240,-43.47979239,0.00012798,2]
[326613500,1715146239252,-1311.2658672,0.00012798,2]
[326613501,1715146239262,-717.43794106,0.00012798,2]
[326613502,1715146239272,-479.29924412,0.00012798,2]
[326613503,1715146239281,-2012.64553609,0.00012798,2]
[326613504,1715146239291,-157.22038164,0.00012798,2]
[326613505,1715146239300,-237.68546544,0.00012798,2]
[326613506,1715146239310,-158.64178796,0.00012798,2]
[326613507,1715146239320,-181.31122553,0.00012798,2]
[326613508,1715146239329,-1735.49303153,0.00012798,2]
[326613509,1715146239340,-208.00872446,0.00012799,2]
[326613510,1715146239350,-157.24505547,0.00012799,2]
[326613511,1715146239359,-155.63160163,0.00012799,2]
[326613512,1715146239369,-837.65627977,0.00012799,2]
[326613513,1715146239378,-442392.80319547,0.00012799,2]
[326613514,1715146239388,-245000.0,0.000128,2]
[326613515,1715146239397,-1000.0,0.000128,2]
[326613516,1715146239407,-2000.0,0.000128,4]
[326613517,1715146239419,-168.92211185,0.000129,2]
[326613518,1715146239428,-27539.12805403,0.000129,2]
[326613519,1715146239438,-181.61376596,0.000129,2]
[326613520,1715146239447,-2600.0,0.000129,4]
[326613521,1715146239457,-2266.418224,0.000129,2]
[326613522,1715146239466,-681.80106367,0.000129,2]
[326613523,1715146239476,-900.75267632,0.000129,2]
[326613524,1715146239485,-277.99173998,0.000129,2]
[326613525,1715146239496,-150.59,0.0001299,2]
[326613526,1715146239507,-150.59,0.0001299,2]
[326613527,1715146239517,-150.59,0.0001299,2]
[326613528,1715146239526,-150.59,0.0001299,2]
[326613529,1715146239536,-363.61,0.0001299,2]
[326613530,1715146239545,-363.61,0.0001299,2]
[326613531,1715146239555,-363.61,0.0001299,2]
[326613532,1715146239565,-363.61,0.0001299,2]
[326613533,1715146239574,-363.61,0.0001299,2]
[326613534,1715146239583,-363.61,0.0001299,2]
[326613535,1715146239592,-363.61,0.0001299,2]
[326613536,1715146239603,-161.1585033,0.0001299,2]
[326613537,1715146239612,-185234.16676514,0.00013,2]
[326613538,1715146239622,-247951.82413542,0.00013,2]
[326613539,1715146239634,-3145.12011062,0.00013,2]
[326613541,1715146241168,-1218.48438797,0.00013,2]
[326613545,1715146241180,-843.4,0.00013,2]
[326613548,1715146241191,-2629.53592848,0.00013,2]
[326613551,1715146241203,-25282.36529426,0.00013,2]
[326613555,1715146241215,-1319.0,0.00013,2]
[326613589,1715146243695,-1053415.43234088,0.00013,2]
[326613593,1715146243707,-21361.52764656,0.00013,2]
[326613596,1715146243719,-8460.15693833,0.00013,2]
[326613600,1715146243731,-7422.1201178,0.00013,2]
[326613603,1715146243742,-389970.01027016,0.00013,2]
[326613606,1715146243754,-339.68487587,0.00013,2]
[326613608,1715146243765,-274.733615,0.00013,2]
[326613609,1715146243778,-1000.54565817,0.00013,2]
[326613610,1715146243790,-612.76214723,0.00013,2]
[326613636,1715146246992,-2343.36758848,0.00013,2]
[326613637,1715146413933,-1316.7024,0.00011598,2]
[326613638,1715146413956,-155.0,0.00011693,2]
[326613639,1715146413979,-535.00984553,0.00011694,2]
[326613640,1715146414001,-165.39781373,0.00011695,2]
[326613641,1715146414022,-750.26963658,0.00011698,2]
[326613642,1715146414045,-150.0,0.00012696,2]
[326613643,1715146414068,-150.0,0.00012696,2]
[326613644,1715146414090,-11777.62030416,0.00012697,2]
[326613648,1715146539157,-265.94745897,0.00012498,2]
[326613649,1715146539180,-155.0,0.00012499,2]
[326613650,1715146539204,-200.0,0.000125,4]
[326613651,1715146539229,-9379.05254103,0.00012569,2]
[326613653,1715146813761,-1305.0,0.00011843,2]
[326613659,1715147108382,-536.8709847,0.00011542,2]
[326613660,1715147108408,-195.08,0.00011543,2]
[326613661,1715147108434,-150.0,0.00011694,2]
[326613662,1715147108458,-10000.0,0.00011695,2]
[326613663,1715147108484,-156.79800347,0.00011743,2]
[326613664,1715147108511,-177.13,0.00011745,2]
[326613665,1715147108537,-855.88782093,0.00011798,2]
[326613666,1715147108566,-1981.5858548,0.000118,2]
[326613667,1715147108591,-17165.43,0.00011843,2]
[326613668,1715147108615,-547.82959903,0.00011843,2]
[326613669,1715147108639,-155.0,0.00011843,2]
[326613670,1715147108665,-7509.83070935,0.00011843,2]
[326613671,1715147108691,-546971.53494048,0.00011843,2]
[326613672,1715147108716,-361.77318883,0.00011843,2]
[326613673,1715147108740,-155.0,0.00011843,2]
[326613674,1715147108764,-409.2190105,0.00011843,2]
[326613675,1715147108789,-211.49,0.00011865,2]
[326613676,1715147108973,-517.2,0.00011886,2]
[326613677,1715147108999,-11448.67725188,0.00012,2]
[326613678,1715147109025,-177.13,0.00012051,2]
[326613679,1715147109056,-177.13,0.00012357,2]
[326613680,1715147109082,-974.788,0.00012469,2]
[326613681,1715147109111,-191.94,0.00012559,2]
[326613682,1715147109139,-191.94,0.00012559,2]
[326613683,1715147109167,-2762.77555243,0.00012569,2]
[326613684,1715147109194,-157.0173515,0.00012596,2]
[326613685,1715147109222,-157.01735146,0.00012597,2]
[326613686,1715147109248,-499.99,0.00012597,2]
[326613687,1715147109275,-157.01735146,0.00012598,2]
[326613688,1715147109303,-157.01735146,0.00012599,2]
[326613689,1715147109329,-500.0,0.000126,4]
[326613690,1715147109354,-157.01735146,0.000126,2]
[326613691,1715147109380,-5104.7769416,0.000126,2]
[326613692,1715147109404,-168.92211184,0.000126,2]
[326613693,1715147109428,-173.56943637,0.000126,2]
[326613694,1715147109455,-25594.63538203,0.000126,2]
[326613695,1715147109487,-178.23996257,0.000126,2]
[326613696,1715147109515,-235.48337855,0.00012688,2]
[326613697,1715147109542,-150.5,0.00012688,2]
[326613698,1715147109570,-191.94,0.00012688,2]
[326613699,1715147109595,-191.94,0.00012689,2]
[326613700,1715147109619,-191.94,0.00012689,2]
[326613701,1715147109643,-174.66835955,0.00012695,2]
[326613702,1715147109668,-535.00984553,0.00012696,2]
[326613703,1715147109692,-201.2023984,0.00012696,2]
[326613704,1715147109717,-156.54477674,0.00012696,2]
[326613705,1715147109741,-155.69727873,0.00012696,2]
[326613706,1715147109766,-8356.39019707,0.00012696,2]
[326613707,1715147109792,-147301.42225728,0.00012698,2]
[326613713,1715147432364,-196.4244666,0.00011688,2]
[326613717,1715147432375,-150.0,0.00011808,2]
[326613720,1715147432384,-150.0,0.00011842,2]
[326613724,1715147432394,-408.97136452,0.00011843,2]
[326613730,1715147432404,-177.33121601,0.00011843,2]
[326613734,1715147432413,-4058.27492205,0.00011843,2]
[326613740,1715147432425,-3456.64082328,0.00011843,2]
[326613743,1715147432434,-6543.39617672,0.00011843,2]
[326613747,1715147432447,-446.9,0.00011843,2]
[326613750,1715147432458,-12369.68526518,0.00011843,2]
[326613754,1715147432470,-791.63952452,0.00011843,2]
[326613757,1715147432482,-1718.69881709,0.00011843,2]
[326613759,1715147432494,-3044.83600577,0.00011843,2]
[326613762,1715147432506,-477.5000509,0.00011843,2]
[326613764,1715147432517,-503.022718,0.00011843,2]
[326613766,1715147432529,-368.36047548,0.00011843,2]
[326613812,1715147437295,-14784.000001,0.00011843,2]
[326613813,1715147438735,-113586.67021682,0.00011843,2]
[326613817,1715147438745,-210.99,0.00011957,2]
[326613821,1715147438755,-250.0,0.00012027,2]
[326613824,1715147438764,-1000.0,0.00012139,2]
[326613828,1715147438773,-500.0,0.000125,4]
[326613831,1715147438783,-1000.0,0.00012569,2]
[326613834,1715147438792,-1100.0,0.000126,4]
[326613837,1715147438803,-499.99,0.000126,2]
[326613840,1715147438812,-1561.86172371,0.00012675,2]
[326613843,1715147438822,-171.37,0.00012688,2]
[326613846,1715147438831,-11489.01509971,0.00012697,2]
[326613850,1715147438840,-537.94929258,0.00012697,2]
[326613852,1715147438850,-79719.7609401,0.00012698,2]
[326613854,1715147438859,-219.56561751,0.00012698,2]
[326613857,1715147438868,-155.0,0.00012698,2]
[326613859,1715147438878,-155.0,0.00012698,2]
[326613862,1715147438888,-547.82959903,0.00012698,2]
[326613864,1715147438897,-245000.0,0.00012699,2]
[326613866,1715147438906,-1700.0,0.000127,4]
[326613868,1715147438916,-2300.0,0.000128,4]
[326613870,1715147438925,-153.13499248,0.00012869,2]
[326613872,1715147438934,-2188.39007528,0.000129,2]
[326613874,1715147438943,-2900.0,0.000129,4]
[326613876,1715147438952,-607.7475536,0.000129,2]
[326613878,1715147438961,-197.75921339,0.000129,2]
[326613880,1715147438971,-212.57921716,0.000129,2]
[326613881,1715147438980,-1052.41387006,0.000129,2]
[326613883,1715147438994,-156.98891903,0.00012989,2]
[326613886,1715147439003,-171.37,0.00012989,2]
[326613888,1715147439013,-156.98891903,0.0001299,2]
[326613890,1715147439022,-156.98891903,0.0001299,2]
[326613891,1715147439033,-150.5,0.0001299,2]
[326613893,1715147439043,-150.5,0.0001299,2]
[326613895,1715147439053,-150.5,0.0001299,2]
[326613897,1715147439062,-150.5,0.0001299,2]
[326613899,1715147439075,-150.5,0.0001299,2]
[326613916,1715147439230,-150.5,0.0001299,2]
[326613919,1715147439241,-150.5,0.0001299,2]
[326613921,1715147439252,-150.5,0.0001299,2]
[326613923,1715147439262,-150.5,0.0001299,2]
[326613925,1715147439271,-150.5,0.0001299,2]
[326613927,1715147439281,-150.5,0.0001299,2]
[326613928,1715147439291,-150.5,0.0001299,2]
[326613931,1715147439301,-150.5,0.0001299,2]
[326613933,1715147439311,-150.5,0.0001299,2]
[326613935,1715147439320,-150.5,0.0001299,2]
[326613937,1715147439330,-171.37,0.0001299,2]
[326613939,1715147439340,-171.37,0.0001299,2]
[326613941,1715147439350,-171.37,0.0001299,2]
[326613942,1715147439360,-171.37,0.0001299,2]
[326613945,1715147439370,-171.37,0.0001299,2]
[326613947,1715147439380,-155.41317959,0.00012998,2]
[326613949,1715147439390,-953.19083685,0.00012998,2]
[326613951,1715147439400,-857.07840683,0.00012998,2]
[326613953,1715147439409,-155.77275652,0.00012998,2]
[326613955,1715147439419,-163.50990513,0.00012998,2]
[326613957,1715147439429,-224.73147123,0.00012998,2]
[326613959,1715147439439,-792.79488993,0.00012998,2]
[326613961,1715147439449,-410.00028319,0.00012998,2]
[326613963,1715147439459,-162.48862493,0.00012998,2]
[326613965,1715147439469,-809.80773881,0.00012998,2]
[326613967,1715147439479,-178.75134766,0.00012998,2]
[326613969,1715147439488,-1623.24851542,0.00012999,2]
[326613971,1715147439498,-207.70279797,0.00012999,2]
[326613973,1715147439508,-5859.3084292,0.00012999,2]
[326613975,1715147439518,-10481.4991738,0.00012999,2]
[326613977,1715147439527,-33856.0365852,0.00012999,2]
[326613979,1715147439538,-5882.0849799,0.00012999,2]
[326613981,1715147439548,-361.5046269,0.00012999,2]
[326613983,1715147439559,-7979.4906651,0.00012999,2]
[326613985,1715147439568,-402.6694011,0.00012999,2]
[326613987,1715147439578,-8734.03313301,0.00013,2]
[326613989,1715147439588,-398.91667936,0.00013,2]
[326613991,1715147439597,-366.24814165,0.00013,2]
[326613993,1715147439610,-363486.85574745,0.00013,2]
[326613995,1715147439623,-953.23988846,0.00013,2]
[326613997,1715147439636,-3183.05659463,0.00013,2]
[326613999,1715147439648,-400.0,0.00013,2]
[326614001,1715147439660,-488.1294,0.00013,2]
[326614037,1715147440910,-2536.66917354,0.00012664,2]
[326614041,1715147440934,-964.27216268,0.00012664,2]
[326614042,1715147440944,-1529.3229378,0.00012741,2]
[326614043,1715147440953,-41369.05460576,0.00013,2]
[326614044,1715147440967,-4926.7667393,0.00013,2]
[326614045,1715147440979,-479.63999999,0.00013,2]
[326614052,1715147443996,-2905.67956504,0.00013,2]
[326614094,1715147446571,-207.70279797,0.00012999,2]
[326614096,1715147446580,-255.51498949,0.00013,2]
[326614097,1715147450467,-1256.32,0.00013,2]
[326614098,1715147450479,-23273.219055,0.00013,2]
[326614099,1715147450492,-3326.18685618,0.00013,2]
[326614100,1715147560062,170.72795494,5e-05,2]
[326614101,1715147592684,399.85245171,5e-05,2]
[326614102,1715147594352,1049.24831281,4e-05,2]
[326614103,1715147595226,2544.85572424,3.75e-05,2]
[326614104,1715147597351,554.49918938,5e-05,2]
[326614106,1715147599231,694.38232022,5e-05,2]
[326614107,1715147602014,423.30130281,4.5e-05,2]
[326614108,1715147610692,399.85245171,5e-05,2]
[326614109,1715147612362,546.65837097,4e-05,2]
[326614110,1715147613221,2544.85572424,3.75e-05,2]
[326614111,1715147613323,554.49918938,5e-05,2]
[326614112,1715147616322,361.77318883,5e-05,2]
[326614113,1715147619850,423.30130281,4.5e-05,2]
[326614114,1715147626681,399.85245171,5e-05,2]
[326614115,1715147630362,546.65837097,4e-05,2]
[326614116,1715147631226,2544.85572424,3.75e-05,2]
[326614117,1715147631329,288.89407767,5e-05,2]
[326614118,1715147632328,361.77318883,5e-05,2]
[326614119,1715147636180,423.30130281,4.5e-05,2]
[326614120,1715147646401,546.65837097,4e-05,2]
[326614121,1715147646679,399.85245171,5e-05,2]
[326614122,1715147647239,1406.90965028,3.75e-05,2]
[326614123,1715147649461,288.89407767,5e-05,2]
[326614124,1715147652329,339.21744909,5e-05,2]
[326614125,1715147652357,22.55573974,5e-05,2]
[326614126,1715147655860,423.30130281,4.5e-05,2]
[326614127,1715147662389,546.65837097,4e-05,2]
[326614128,1715147664691,399.85245171,5e-05,2]
[326614129,1715147668328,361.77318883,5e-05,2]
[326614130,1715147669332,288.89407767,5e-05,2]
[326614131,1715147673852,467.7740051,4.5e-05,2]
[326614132,1715147682361,546.65837097,4e-05,2]
[326614133,1715147684682,399.85245171,5e-05,2]
[326614134,1715147690632,288.89407767,5e-05,2]
[326614135,1715147700930,361.77318883,5e-05,2]
[326614136,1715147708373,546.65837097,3.2e-05,2]
[326614137,1715147711371,288.89407767,4e-05,2]
[326614138,1715147712360,361.77318883,4e-05,2]
[326614139,1715147716617,398.03590764,5e-05,2]
[326614140,1715147729351,288.89407767,4e-05,2]
[326614141,1715147741474,546.65837097,3.2e-05,2]
[326614142,1715147745367,288.89407767,4e-05,2]
[326614143,1715147746716,361.77318883,4e-05,2]
[326614144,1715147760345,361.77318883,4e-05,2]
[326614145,1715147762835,546.65837097,3.2e-05,2]
[326614146,1715147765364,288.89407767,4e-05,2]
[326614147,1715147778390,546.65837097,3.2e-05,2]
[326614148,1715147781365,288.89407767,4e-05,2]
[326614149,1715147784452,361.77318883,4e-05,2]
[326614150,1715147796387,590.13501915,3.2e-05,2]
[326614151,1715147797364,175.38968839,4e-05,2]
[326614152,1715147800349,361.77318883,4e-05,2]
[326614153,1715147822755,217.86607357,4e-05,2]
[326614180,1715148633175,-156.27,9.014e-05,2]
[326614183,1715148633185,-535.00984553,9.328e-05,2]
[326614186,1715148633194,-124.96468945,9.329e-05,2]
[326614190,1715148633206,-84.62994775,9.329e-05,2]
[326614211,1715148633327,-4500.0,9.33e-05,2]
[326614212,1715148633337,-872.96718554,9.331e-05,2]
[326614214,1715148633346,-186.3905563,9.344e-05,2]
[326614216,1715148633357,-352.34208425,9.344e-05,2]
[326614218,1715148633367,-169.4,9.349e-05,2]
[326614220,1715148633376,-283.65,0.00010959,2]
[326614221,1715148633385,-236.38,0.00010959,2]
[326614222,1715148633395,-196.98,0.00010959,2]
[326614223,1715148633404,-164.15,0.00010959,2]
[326614224,1715148633413,-820.77,0.00010959,2]
[326614225,1715148633422,-150.0,0.00011203,2]
[326614226,1715148633431,-515.31015237,0.00011257,2]
[326614228,1715148633442,-484.68984763,0.00011257,2]
[326614230,1715148633451,-177.13,0.00011275,2]
[326614231,1715148633461,-178.70347166,0.0001136,2]
[326614232,1715148633472,-35.07652834,0.0001136,2]
[326614233,1715148633482,-517.2,0.00011363,2]
[326614234,1715148633495,-180.63776252,0.00011417,2]
[326614237,1715148638403,-69.36223748,0.00011417,2]
[326614240,1715148638415,-195.08,0.00011521,2]
[326614242,1715148638427,-177.13,0.00011569,2]
[326614244,1715148638438,-177.13,0.00011862,2]
[326614246,1715148638449,-499.99,0.00011956,2]
[326614248,1715148638461,-1895.8392,0.00012498,2]
[326614251,1715148638472,-353.39177041,0.00012498,2]
[326614253,1715148638487,-646.60822959,0.00012498,2]
[326614256,1715148638503,-79.81532738,0.00012498,2]
[326614257,1715148638519,-2453.75523272,0.00012498,2]
[326614258,1715148638534,-1918.8736399,0.00012498,2]
[326614259,1715148638548,-1106.30288537,0.00012513,2]
[326614260,1715148638561,-155.69727873,0.00012596,2]
[326614261,1715148638573,-0.32598416,0.00012596,2]
[326614262,1715148638587,-174.34237539,0.00012596,2]
[326614263,1715148638598,-171.67087552,0.00012596,2]
[326614264,1715148638607,-155.5920256,0.00012596,2]
[326614265,1715148638617,-1240.3390258,0.00012596,2]
[326614266,1715148638627,-1270.56596455,0.00012596,2]
[326614267,1715148638636,-967.31375503,0.00012596,2]
[326614268,1715148638646,-274.61900423,0.00012596,2]
[326614269,1715148638836,-3084.72177879,0.00012596,2]
[326614270,1715148638847,-208.11144529,0.00012596,2]
[326614271,1715148638856,-320.45896476,0.00012596,2]
[326614272,1715148638866,-201.2023984,0.00012597,2]
[326614273,1715148638875,-2762.77555243,0.00012597,2]
[326614274,1715148638884,-156.54477674,0.00012597,2]
[326614275,1715148638894,-187410.537,0.00012598,2]
[326614276,1715148638903,-179.50511077,0.00012645,2]
[326614277,1715148638912,-1000.0,0.00012664,2]
[326614278,1715148638922,-1788.39653206,0.000127,2]
[326614279,1715148638931,-254.00628796,0.00012868,2]
[326614280,1715148638940,-153.13499248,0.00012869,2]
[326614281,1715148638950,-159.96,0.0001289,2]
[326614282,1715148638959,-150.0,0.00012897,2]
[326614283,1715148638968,-168.92211184,0.000129,2]
[326614284,1715148638978,-173.56943637,0.000129,2]
[326614285,1715148638988,-23461.74910013,0.000129,2]
[326614286,1715148638997,-213.47616274,0.000129,2]
[326614287,1715148639007,-189.66064792,0.000129,2]
[326614288,1715148639017,-353.59266672,0.000129,2]
[326614289,1715148639026,-2193.94060963,0.000129,2]
[326614290,1715148639040,-701.6092467,0.000129,2]
[326614291,1715148639050,-405.16503572,0.000129,2]
[326614292,1715148639059,-255.68465905,0.000129,2]
[326614293,1715148639069,-156.79800347,0.000129,2]
[326614294,1715148639079,-1106.30288537,0.000129,2]
[326614295,1715148639088,-678.1763,0.00012935,2]
[326614296,1715148639098,-2129.10568378,0.00012968,2]
[326614297,1715148639108,-150.51,0.0001299,2]
[326614298,1715148639117,-150.51,0.0001299,2]
[326614299,1715148639127,-235.48337856,0.0001299,2]
[326614300,1715148639136,-150.51,0.0001299,2]
[326614301,1715148639146,-150.51,0.0001299,2]
[326614302,1715148639156,-150.51,0.0001299,2]
[326614303,1715148639166,-159.96,0.0001299,2]
[326614304,1715148639175,-159.96,0.0001299,2]
[326614305,1715148639185,-159.96,0.0001299,2]
[326614306,1715148639194,-159.96,0.0001299,2]
[326614307,1715148639204,-159.96,0.0001299,2]
[326614308,1715148639213,-5859.3084292,0.00012999,2]
[326614309,1715148639223,-207.70279797,0.00012999,2]
[326614310,1715148639232,-821439.45934049,0.00013,2]
[326614311,1715148639244,-381.33465368,0.00013,2]
[326614312,1715148639256,-796.44791203,0.00013,2]
[326614313,1715148639268,-5990.74470959,0.00013,2]
[326614318,1715148641917,-9004.34196639,0.00013,2]
[326614319,1715148644342,-4535.977606,0.00010904,2]
[326614324,1715148644352,-22717.80355883,0.00013,2]
[326614353,1715148646633,-242.56852409,0.00012999,2]
[326614354,1715148646643,-1004.02047995,0.00012999,2]
[326614358,1715148646785,-4855.28794925,0.00012999,2]
[326614359,1715148646796,-284.92063539,0.00012999,2]
[326614360,1715148646805,-109533.18997023,0.00013,2]
[326615318,1715149833232,-261.62382088,9.515e-05,2]
[326615326,1715149833246,-273.38602465,9.515e-05,2]
[326615329,1715149833256,-209.5946372,9.516e-05,2]
[326615335,1715149833266,-147.01848029,9.523e-05,2]
[326615343,1715149833277,-9.25151971,9.523e-05,2]
[326615347,1715149833290,-394.89842617,9.557e-05,2]
[326615352,1715149833303,-1391.30847918,9.557e-05,2]
[326615356,1715149833313,-283.71,0.00011842,2]
[326615358,1715149833323,-182.22,0.00011842,2]
[326615360,1715149833332,-480.34740885,0.00011882,2]
[326615361,1715149833344,-119.65259115,0.00011882,2]
[326615363,1715149833356,-211.78,0.00011924,2]
[326615365,1715149833366,-246.16,0.00011999,2]
[326615367,1715149833375,-70.97398671,0.00012023,2]
[326615369,1715149833387,-329.02601329,0.00012023,2]
[326615371,1715149833396,-150.0,0.00012497,2]
[326615373,1715149833405,-850.25801444,0.00012498,2]
[326615375,1715149833416,-1845.29162567,0.00012498,2]
[326615377,1715149833428,-10621.80029483,0.00012498,2]
[326615379,1715149833439,-364.7,0.00012498,2]
[326615380,1715149833451,-275.02123254,0.00012498,2]
[326615381,1715149833462,-6464.92593252,0.00012498,2]
[326615382,1715149833472,-499.99,0.00012498,2]
[326615383,1715149833481,-1399.09,0.00012498,2]
[326615384,1715149833491,-150.99,0.00012595,2]
[326615385,1715149833500,-1561.26800831,0.00012667,2]
[326615386,1715149833510,-3495.78164414,0.00012681,2]
[326615387,1715149833519,-153.13499248,0.00012869,2]
[326615388,1715149833529,-500.0,0.00012895,2]
[326615389,1715149833538,-388.9818816,0.00012895,2]
[326615390,1715149833550,-111.0181184,0.00012895,2]
[326615391,1715149833559,-500.0,0.00012896,2]
[326615392,1715149833569,-250.85971014,0.00012896,2]
[326615393,1715149833580,-249.14028986,0.00012896,2]
[326615394,1715149833591,-500.0,0.00012896,2]
[326615395,1715149833604,-500.0,0.00012896,2]
[326615396,1715149833613,-329.53898838,0.00012898,2]
[326615397,1715149833622,-642.97865875,0.00012899,2]
[326615398,1715149833630,-652.58814216,0.000129,2]
[326615399,1715149833639,-1000.0,0.000129,2]
[326615400,1715149833648,-168.92211184,0.000129,2]
[326615401,1715149833657,-3133.23660354,0.000129,2]
[326615416,1715149838456,-153.13499248,0.00012869,2]
[326615417,1715149838466,-13976.42800831,0.000129,2]
[326615419,1715149839268,-1859.13214073,0.000129,2]
[326615422,1715149839280,-481.30297912,0.000129,2]
[326615425,1715149839294,-80549.9002683,0.000129,2]
[326615428,1715149839304,-500.0,0.000129,2]
[326615430,1715149839314,-22280.58694166,0.000129,2]
[326615432,1715149839324,-203.89152984,0.000129,2]
[326615434,1715149839334,-974.788,0.000129,2]
[326615435,1715149839343,-170.45643938,0.000129,2]
[326615438,1715149839354,-616.53481735,0.000129,2]
[326615440,1715149839364,-165.93398299,0.000129,2]
[326615441,1715149839374,-270.11002382,0.000129,2]
[326615442,1715149839383,-467.7394978,0.000129,2]